Workbook

Sheet Emprunt
B1: Remboursement d'emprunt à mensualités constantes
C2: DONNEES | F2: =clTauxGlobal -> 0.6781570507 | I2: RESULTATS | M2: fonction Excel VPM
C3: Capital : | D3: =1000*clieeCapital -> 100000 | E3: 100 | F3: =clTauxGlobal -> 0.6781570507 | I3: Mensualité : | J3: =clCapital * TauxMensuel / (1 - 1 / (1 + TauxMensuel) ^ NbMois) -> 699.2321044 | M3: =PMT(TauxMensuel,NbMois,-clCapital) -> 699.2321044
B4: =clDuree*12 -> 240 | C4: Durée : | D4: 20 | F4: =clTauxGlobal -> 0.6781570507 | I4: Intérêts totaux : | J4: =NbMois * clMensualite - clCapital -> 67815.70507 | M4: =NbMois * M3 - clCapital -> 67815.70507
B5: =clTauxAnnuel/12 -> 0.00475 | C5: Taux : | D5: =clieeTaux/1000 -> 0.057 | E5: 57 | F5: =clTauxGlobal -> 0.6781570507 | I5: Intérêts/Capital : | J5: =clFraisTotaux/clCapital -> 0.6781570507 | M5: =M4/clCapital -> 0.6781570507
C6: Frais fixes : | D6: =100*clFrais -> 29000 | E6: 290 | F6: =clTauxGlobal -> 0.6781570507 | I6: T.E.G. : | J6: formule ?
H7: CALCUL DU CAPITAL EMPRUNTABLE SELON LA MENSUALITE | O7: Tableau de remboursement
F8: 0.05 | G8: 40 | I8: Mensualité | J8: =10*L8 -> 700 | L8: 70 | O8: Mois | P8: Part intérêt | Q8: Part capital | R8: Capital restant
F9: =PV(F8/12,G8*12,-J8)/1000 -> 145.1690035 | G9: 10 | H9: =G9+5 -> 15 | I9: 20 | J9: 25 | K9: 30 | L9: 35 | M9: 40 | O9: 1 | P9: =clCapital*TauxMensuel -> 475 | Q9: =clMensualite-PartInteret -> 224.2321044 | R9: =clCapital-PartCapital -> 99775.7679
F10: 0.05 | G10: 65.99694523 | H10: 88.51866989 | I10: 106.0677192 | J10: 119.7420329 | K10: 130.3971319 | L10: 138.6996425 | M10: 145.1690035 | O10: =PeriodePrecedente+1 -> 2 | P10: =CapitalPrecedent*TauxMensuel -> 473.9348975 | Q10: =IF(PeriodeCourante<=NbMois,clMensualite-PartInteret,0) -> 225.2972069 | R10: =CapitalPrecedent-PartCapital -> 99550.47069
F11: =F10+0.1% -> 0.051 | G11: 65.69378469 | H11: 87.93830464 | I11: 105.1852669 | J11: 118.5574462 | K11: 128.9253692 | L11: 136.9639863 | M11: 143.1966101 | O11: 3 | P11: 472.8647358 | Q11: 226.3673687 | R11: 99324.10332
F12: 0.052 | G12: 65.39257507 | H12: 87.36337003 | I12: 104.3135047 | J12: 117.3902763 | K12: 127.478807 | L12: 135.2619552 | M12: 141.2665359 | O12: 4 | P12: 471.7894908 | Q12: 227.4426137 | R12: 99096.66071
F13: 0.053 | G13: 65.09330188 | H13: 86.79380706 | I13: 103.452281 | J13: 116.2402208 | K13: 126.0569305 | L13: 133.5927645 | M13: 139.3776756 | O13: 5 | P13: 470.7091384 | Q13: 228.5229661 | R13: 98868.13774
F14: 0.054 | G14: 64.79595076 | H14: 86.22955743 | I14: 102.6014464 | J14: 115.1069829 | K14: 124.6592369 | L14: 131.9556497 | M14: 137.5289562 | O14: 6 | P14: 469.6236543 | Q14: 229.6084502 | R14: 98638.52929
F15: 0.055 | G15: 64.50050745 | H15: 85.67056352 | I15: 101.7608541 | J15: 113.9902715 | K15: 123.2852342 | L15: 130.3498659 | M15: 135.7193358 | O15: 7 | P15: 468.5330141 | Q15: 230.6990903 | R15: 98407.8302
F16: 0.056 | G16: 64.20695782 | H16: 85.11676839 | I16: 100.9303594 | J16: 112.8898012 | K16: 121.9344417 | L16: 128.7746876 | M16: 133.9478025 | O16: 8 | P16: 467.4371934 | Q16: 231.794911 | R16: 98176.03529
F17: 0.057 | G17: 63.91528784 | H17: 84.56811578 | I17: 100.1098198 | J17: 111.8052916 | K17: 120.6063894 | L17: 127.2294078 | M17: 132.2133738 | O17: 9 | P17: 466.3361676 | Q17: 232.8959368 | R17: 97943.13935
F18: 0.058 | G18: 63.62548362 | H18: 84.02455008 | I18: 99.29909514 | J18: 110.7364679 | K18: 119.3006179 | L18: 125.7133376 | M18: 130.5150954 | O18: 10 | P18: 465.2299119 | Q18: 234.0021925 | R18: 97709.13716
F19: 0.059 | G19: 63.33753134 | H19: 83.48601634 | I19: 98.49804724 | J19: 109.6830605 | K19: 118.0166779 | L19: 124.2258058 | M19: 128.8520405 | O19: 11 | P19: 464.1184015 | Q19: 235.1137029 | R19: 97474.02346
F20: 0.06 | G20: 63.05141733 | H20: 82.95246027 | I20: 97.70654018 | J20: 108.6448048 | K20: 116.7541301 | L20: 122.7661584 | M20: 127.223309 | O20: 12 | P20: 463.0016114 | Q20: 236.230493 | R20: 97237.79296
F21: 0.061 | G21: 62.767128 | H21: 82.42382819 | I21: 96.92444007 | J21: 107.6214413 | K21: 115.5125451 | L21: 121.3337579 | M21: 125.6280263 | O21: 13 | P21: 461.8795166 | Q21: 237.3525879 | R21: 97000.44038
F22: 0.062 | G22: 62.48464989 | H22: 81.90006706 | I22: 96.15161511 | J22: 106.6127152 | K22: 114.291503 | L22: 119.9279832 | M22: 124.0653431 | O22: 14 | P22: 460.7520918 | Q22: 238.4800127 | R22: 96761.96036
F23: 0.063 | G23: 62.20396964 | H23: 81.38112449 | I23: 95.38793549 | J23: 105.6183767 | K23: 113.0905933 | L23: 118.5482291 | M23: 122.5344342 | O23: 15 | P23: 459.6193117 | Q23: 239.6127927 | R23: 96522.34757
F24: 0.064 | G24: 61.92507399 | H24: 80.86694866 | I24: 94.6332734 | J24: 104.6381805 | K24: 111.9094144 | L24: 117.1939054 | M24: 121.0344978 | O24: 16 | P24: 458.481151 | Q24: 240.7509535 | R24: 96281.59662
F25: 0.065 | G25: 61.6479498 | H25: 80.3574884 | I25: 93.887503 | J25: 103.6718862 | K25: 110.7475737 | L25: 115.8644372 | M25: 119.5647549 | O25: 17 | P25: 457.3375839 | Q25: 241.8945205 | R25: 96039.7021
F26: 0.066 | G26: 61.37258403 | H26: 79.8526931 | I26: 93.15050036 | J26: 102.7192576 | K26: 109.6046872 | L26: 114.5592638 | M26: 118.1244487 | O26: 18 | P26: 456.188585 | Q26: 243.0435195 | R26: 95796.65858
F27: 0.067 | G27: 61.09896374 | H27: 79.35251277 | I27: 92.42214345 | J27: 101.7800632 | K27: 108.4803796 | L27: 113.277839 | M27: 116.7128435 | O27: 19 | P27: 455.0341282 | Q27: 244.1979762 | R27: 95552.4606
F28: 0.068 | G28: 60.82707609 | H28: 78.85689799 | I28: 91.7023121 | J28: 100.8540755 | K28: 107.3742835 | L28: 112.0196302 | M28: 115.3292248 | O28: 20 | P28: 453.8741879 | Q28: 245.3579166 | R28: 95307.10268
F29: 0.069 | G29: 60.55690835 | H29: 78.36579993 | I29: 90.99088798 | J29: 99.94107151 | K29: 106.2860399 | L29: 110.784118 | M29: 113.9728977 | O29: 21 | P29: 452.7087377 | Q29: 246.5233667 | R29: 95060.57932
F30: 0.07 | G30: 60.2884479 | H30: 77.87917033 | I30: 90.28775455 | J30: 99.04083237 | K30: 105.2152976 | L30: 109.5707964 | M30: 112.6431873 | O30: 22 | P30: 451.5377518 | Q30: 247.6943527 | R30: 94812.88496
O31: 23 | P31: 450.3612036 | Q31: 248.8709009 | R31: 94564.01406
O32: 24 | P32: 449.1790668 | Q32: 250.0530376 | R32: 94313.96103
O33: 25 | P33: 447.9913149 | Q33: 251.2407896 | R33: 94062.72024
O34: 26 | P34: 446.7979211 | Q34: 252.4341833 | R34: 93810.28605
O35: 27 | P35: 445.5988588 | Q35: 253.6332457 | R35: 93556.65281
O36: 28 | P36: 444.3941008 | Q36: 254.8380036 | R36: 93301.8148
O37: 29 | P37: 443.1836203 | Q37: 256.0484841 | R37: 93045.76632
O38: 30 | P38: 441.96739 | Q38: 257.2647144 | R38: 92788.50161
O39: 31 | P39: 440.7453826 | Q39: 258.4867218 | R39: 92530.01488
O40: 32 | P40: 439.5175707 | Q40: 259.7145337 | R40: 92270.30035
O41: 33 | P41: 438.2839267 | Q41: 260.9481778 | R41: 92009.35217
O42: 34 | P42: 437.0444228 | Q42: 262.1876816 | R42: 91747.16449
O43: 35 | P43: 435.7990313 | Q43: 263.4330731 | R43: 91483.73142
O44: 36 | P44: 434.5477242 | Q44: 264.6843802 | R44: 91219.04704
O45: 37 | P45: 433.2904734 | Q45: 265.941631 | R45: 90953.10541
O46: 38 | P46: 432.0272507 | Q46: 267.2048538 | R46: 90685.90055
O47: 39 | P47: 430.7580276 | Q47: 268.4740768 | R47: 90417.42648
O48: 40 | P48: 429.4827758 | Q48: 269.7493287 | R48: 90147.67715
O49: 41 | P49: 428.2014664 | Q49: 271.030638 | R49: 89876.64651
O50: 42 | P50: 426.9140709 | Q50: 272.3180335 | R50: 89604.32848
O51: 43 | P51: 425.6205603 | Q51: 273.6115442 | R51: 89330.71693
O52: 44 | P52: 424.3209054 | Q52: 274.911199 | R52: 89055.80573
O53: 45 | P53: 423.0150772 | Q53: 276.2170272 | R53: 88779.5887
O54: 46 | P54: 421.7030463 | Q54: 277.5290581 | R54: 88502.05965
O55: 47 | P55: 420.3847833 | Q55: 278.8473211 | R55: 88223.21233
O56: 48 | P56: 419.0602585 | Q56: 280.1718459 | R56: 87943.04048
O57: 49 | P57: 417.7294423 | Q57: 281.5026622 | R57: 87661.53782
O58: 50 | P58: 416.3923046 | Q58: 282.8397998 | R58: 87378.69802
O59: 51 | P59: 415.0488156 | Q59: 284.1832889 | R59: 87094.51473
O60: 52 | P60: 413.698945 | Q60: 285.5331595 | R60: 86808.98157
O61: 53 | P61: 412.3426625 | Q61: 286.889442 | R61: 86522.09213
O62: 54 | P62: 410.9799376 | Q62: 288.2521668 | R62: 86233.83996
O63: 55 | P63: 409.6107398 | Q63: 289.6213646 | R63: 85944.2186
O64: 56 | P64: 408.2350383 | Q64: 290.9970661 | R64: 85653.22153
O65: 57 | P65: 406.8528023 | Q65: 292.3793022 | R65: 85360.84223
O66: 58 | P66: 405.4640006 | Q66: 293.7681039 | R66: 85067.07412
O67: 59 | P67: 404.0686021 | Q67: 295.1635024 | R67: 84771.91062
O68: 60 | P68: 402.6665755 | Q68: 296.565529 | R68: 84475.34509
O69: 61 | P69: 401.2578892 | Q69: 297.9742153 | R69: 84177.37088
O70: 62 | P70: 399.8425117 | Q70: 299.3895928 | R70: 83877.98128
O71: 63 | P71: 398.4204111 | Q71: 300.8116933 | R71: 83577.16959
O72: 64 | P72: 396.9915556 | Q72: 302.2405489 | R72: 83274.92904
O73: 65 | P73: 395.555913 | Q73: 303.6761915 | R73: 82971.25285
O74: =PeriodePrecedente+1 -> 66 | P74: =CapitalPrecedent*TauxMensuel -> 394.113451 | Q74: =IF(PeriodeCourante<=NbMois,clMensualite-PartInteret,0) -> 305.1186534 | R74: 82666.1342
O75: 67 | P75: 392.6641374 | Q75: 306.567967 | R75: 82359.56623
O76: 68 | P76: 391.2079396 | Q76: 308.0241648 | R76: 82051.54207
O77: 69 | P77: 389.7448248 | Q77: 309.4872796 | R77: 81742.05479
O78: 70 | P78: 388.2747602 | Q78: 310.9573442 | R78: 81431.09744
O79: 71 | P79: 386.7977128 | Q79: 312.4343916 | R79: 81118.66305
O80: 72 | P80: 385.3136495 | Q80: 313.918455 | R80: 80804.7446
O81: 73 | P81: 383.8225368 | Q81: 315.4095676 | R81: 80489.33503
O82: 74 | P82: 382.3243414 | Q82: 316.9077631 | R82: 80172.42726
O83: 75 | P83: 380.8190295 | Q83: 318.4130749 | R83: 79854.01419
O84: 76 | P84: 379.3065674 | Q84: 319.925537 | R84: 79534.08865
O85: 77 | P85: 377.7869211 | Q85: 321.4451833 | R85: 79212.64347
O86: 78 | P86: 376.2600565 | Q86: 322.972048 | R86: 78889.67142
O87: 79 | P87: 374.7259393 | Q87: 324.5061652 | R87: 78565.16526
O88: 80 | P88: 373.184535 | Q88: 326.0475695 | R88: 78239.11769
O89: 81 | P89: 371.635809 | Q89: 327.5962954 | R89: 77911.52139
O90: 82 | P90: 370.0797266 | Q90: 329.1523778 | R90: 77582.36901
O91: 83 | P91: 368.5162528 | Q91: 330.7158516 | R91: 77251.65316
O92: 84 | P92: 366.9453525 | Q92: 332.2867519 | R92: 76919.36641
O93: 85 | P93: 365.3669904 | Q93: 333.865114 | R93: 76585.5013
O94: 86 | P94: 363.7811312 | Q94: 335.4509733 | R94: 76250.05032
O95: 87 | P95: 362.187739 | Q95: 337.0443654 | R95: 75913.00596
O96: 88 | P96: 360.5867783 | Q96: 338.6453261 | R96: 75574.36063
O97: 89 | P97: 358.978213 | Q97: 340.2538914 | R97: 75234.10674
O98: 90 | P98: 357.362007 | Q98: 341.8700974 | R98: 74892.23664
O99: 91 | P99: 355.738124 | Q99: 343.4939804 | R99: 74548.74266
O100: 92 | P100: 354.1065276 | Q100: 345.1255768 | R100: 74203.61708
O101: 93 | P101: 352.4671812 | Q101: 346.7649233 | R101: 73856.85216
O102: 94 | P102: 350.8200478 | Q102: 348.4120567 | R102: 73508.4401
O103: 95 | P103: 349.1650905 | Q103: 350.0670139 | R103: 73158.37309
O104: 96 | P104: 347.5022722 | Q104: 351.7298323 | R104: 72806.64326
O105: 97 | P105: 345.8315555 | Q105: 353.400549 | R105: 72453.24271
O106: 98 | P106: 344.1529029 | Q106: 355.0792016 | R106: 72098.16351
O107: 99 | P107: 342.4662767 | Q107: 356.7658278 | R107: 71741.39768
O108: 100 | P108: 340.771639 | Q108: 358.4604655 | R108: 71382.93721
O109: 101 | P109: 339.0689518 | Q109: 360.1631527 | R109: 71022.77406
O110: 102 | P110: 337.3581768 | Q110: 361.8739276 | R110: 70660.90013
O111: 103 | P111: 335.6392756 | Q111: 363.5928288 | R111: 70297.30731
O112: 104 | P112: 333.9122097 | Q112: 365.3198947 | R112: 69931.98741
O113: 105 | P113: 332.1769402 | Q113: 367.0551642 | R113: 69564.93225
O114: 106 | P114: 330.4334282 | Q114: 368.7986763 | R114: 69196.13357
O115: 107 | P115: 328.6816345 | Q115: 370.55047 | R115: 68825.5831
O116: 108 | P116: 326.9215197 | Q116: 372.3105847 | R116: 68453.27252
O117: 109 | P117: 325.1530445 | Q117: 374.07906 | R117: 68079.19346
O118: 110 | P118: 323.3761689 | Q118: 375.8559355 | R118: 67703.33752
O119: 111 | P119: 321.5908532 | Q119: 377.6412512 | R119: 67325.69627
O120: 112 | P120: 319.7970573 | Q120: 379.4350472 | R120: 66946.26122
O121: 113 | P121: 317.9947408 | Q121: 381.2373636 | R121: 66565.02386
O122: 114 | P122: 316.1838633 | Q122: 383.0482411 | R122: 66181.97562
O123: 115 | P123: 314.3643842 | Q123: 384.8677203 | R123: 65797.1079
O124: 116 | P124: 312.5362625 | Q124: 386.6958419 | R124: 65410.41206
O125: 117 | P125: 310.6994573 | Q125: 388.5326472 | R125: 65021.87941
O126: 118 | P126: 308.8539272 | Q126: 390.3781773 | R126: 64631.50123
O127: 119 | P127: 306.9996308 | Q127: 392.2324736 | R127: 64239.26876
O128: 120 | P128: 305.1365266 | Q128: 394.0955778 | R128: 63845.17318
O129: 121 | P129: 303.2645726 | Q129: 395.9675318 | R129: 63449.20565
O130: 122 | P130: 301.3837268 | Q130: 397.8483776 | R130: 63051.35727
O131: 123 | P131: 299.493947 | Q131: 399.7381574 | R131: 62651.61911
O132: 124 | P132: 297.5951908 | Q132: 401.6369137 | R132: 62249.9822
O133: 125 | P133: 295.6874154 | Q133: 403.544689 | R133: 61846.43751
O134: 126 | P134: 293.7705782 | Q134: 405.4615263 | R134: 61440.97598
O135: 127 | P135: 291.8446359 | Q135: 407.3874685 | R135: 61033.58851
O136: 128 | P136: 289.9095454 | Q136: 409.322559 | R136: 60624.26596
O137: 129 | P137: 287.9652633 | Q137: 411.2668411 | R137: 60212.99911
O138: =PeriodePrecedente+1 -> 130 | P138: =CapitalPrecedent*TauxMensuel -> 286.0117458 | Q138: =IF(PeriodeCourante<=NbMois,clMensualite-PartInteret,0) -> 413.2203586 | R138: 59799.77876
O139: 131 | P139: 284.0489491 | Q139: 415.1831553 | R139: 59384.5956
O140: 132 | P140: 282.0768291 | Q140: 417.1552753 | R140: 58967.44033
O141: 133 | P141: 280.0953415 | Q141: 419.1367629 | R141: 58548.30356
O142: 134 | P142: 278.1044419 | Q142: 421.1276625 | R142: 58127.1759
O143: 135 | P143: 276.1040855 | Q143: 423.1280189 | R143: 57704.04788
O144: 136 | P144: 274.0942274 | Q144: 425.137877 | R144: 57278.91
O145: 137 | P145: 272.0748225 | Q145: 427.1572819 | R145: 56851.75272
O146: 138 | P146: 270.0458254 | Q146: 429.186279 | R146: 56422.56644
O147: 139 | P147: 268.0071906 | Q147: 431.2249138 | R147: 55991.34153
O148: 140 | P148: 265.9588723 | Q148: 433.2732322 | R148: 55558.0683
O149: 141 | P149: 263.9008244 | Q149: 435.33128 | R149: 55122.73702
O150: 142 | P150: 261.8330008 | Q150: 437.3991036 | R150: 54685.33791
O151: 143 | P151: 259.7553551 | Q151: 439.4767494 | R151: 54245.86116
O152: 144 | P152: 257.6678405 | Q152: 441.5642639 | R152: 53804.2969
O153: 145 | P153: 255.5704103 | Q153: 443.6616942 | R153: 53360.63521
O154: 146 | P154: 253.4630172 | Q154: 445.7690872 | R154: 52914.86612
O155: 147 | P155: 251.3456141 | Q155: 447.8864904 | R155: 52466.97963
O156: 148 | P156: 249.2181532 | Q156: 450.0139512 | R156: 52016.96568
O157: 149 | P157: 247.080587 | Q157: 452.1515175 | R157: 51564.81416
O158: 150 | P158: 244.9328673 | Q158: 454.2992372 | R158: 51110.51492
O159: 151 | P159: 242.7749459 | Q159: 456.4571586 | R159: 50654.05776
O160: 152 | P160: 240.6067744 | Q160: 458.6253301 | R160: 50195.43243
O161: 153 | P161: 238.4283041 | Q161: 460.8038004 | R161: 49734.62863
O162: 154 | P162: 236.239486 | Q162: 462.9926184 | R162: 49271.63602
O163: 155 | P163: 234.0402711 | Q163: 465.1918334 | R163: 48806.44418
O164: 156 | P164: 231.8306099 | Q164: 467.4014946 | R164: 48339.04269
O165: 157 | P165: 229.6104528 | Q165: 469.6216517 | R165: 47869.42104
O166: 158 | P166: 227.3797499 | Q166: 471.8523545 | R166: 47397.56868
O167: 159 | P167: 225.1384512 | Q167: 474.0936532 | R167: 46923.47503
O168: 160 | P168: 222.8865064 | Q168: 476.3455981 | R168: 46447.12943
O169: 161 | P169: 220.6238648 | Q169: 478.6082396 | R169: 45968.52119
O170: 162 | P170: 218.3504757 | Q170: 480.8816288 | R170: 45487.63956
O171: 163 | P171: 216.0662879 | Q171: 483.1658165 | R171: 45004.47374
O172: 164 | P172: 213.7712503 | Q172: 485.4608542 | R172: 44519.01289
O173: 165 | P173: 211.4653112 | Q173: 487.7667932 | R173: 44031.2461
O174: 166 | P174: 209.148419 | Q174: 490.0836855 | R174: 43541.16241
O175: 167 | P175: 206.8205215 | Q175: 492.411583 | R175: 43048.75083
O176: 168 | P176: 204.4815664 | Q176: 494.750538 | R176: 42554.00029
O177: 169 | P177: 202.1315014 | Q177: 497.1006031 | R177: 42056.89969
O178: 170 | P178: 199.7702735 | Q178: 499.4618309 | R178: 41557.43786
O179: 171 | P179: 197.3978298 | Q179: 501.8342746 | R179: 41055.60358
O180: 172 | P180: 195.014117 | Q180: 504.2179874 | R180: 40551.38559
O181: 173 | P181: 192.6190816 | Q181: 506.6130229 | R181: 40044.77257
O182: 174 | P182: 190.2126697 | Q182: 509.0194347 | R182: 39535.75314
O183: 175 | P183: 187.7948274 | Q183: 511.437277 | R183: 39024.31586
O184: 176 | P184: 185.3655003 | Q184: 513.8666041 | R184: 38510.44926
O185: 177 | P185: 182.924634 | Q185: 516.3074705 | R185: 37994.14179
O186: 178 | P186: 180.4721735 | Q186: 518.759931 | R186: 37475.38185
O187: 179 | P187: 178.0080638 | Q187: 521.2240406 | R187: 36954.15781
O188: 180 | P188: 175.5322496 | Q188: 523.6998548 | R188: 36430.45796
O189: 181 | P189: 173.0446753 | Q189: 526.1874291 | R189: 35904.27053
O190: 182 | P190: 170.545285 | Q190: 528.6868194 | R190: 35375.58371
O191: 183 | P191: 168.0340226 | Q191: 531.1980818 | R191: 34844.38563
O192: 184 | P192: 165.5108317 | Q192: 533.7212727 | R192: 34310.66436
O193: 185 | P193: 162.9756557 | Q193: 536.2564487 | R193: 33774.40791
O194: 186 | P194: 160.4284376 | Q194: 538.8036669 | R194: 33235.60424
O195: 187 | P195: 157.8691201 | Q195: 541.3629843 | R195: 32694.24126
O196: 188 | P196: 155.297646 | Q196: 543.9344585 | R196: 32150.3068
O197: 189 | P197: 152.7139573 | Q197: 546.5181472 | R197: 31603.78865
O198: 190 | P198: 150.1179961 | Q198: 549.1141083 | R198: 31054.67454
O199: 191 | P199: 147.5097041 | Q199: 551.7224004 | R199: 30502.95214
O200: 192 | P200: 144.8890227 | Q200: 554.3430818 | R200: 29948.60906
... 289 more rows
